fUSD/lending_fUSD_20241107
["ID","MTS","AMOUNT","RATE_DAILY","PERIOD"]
[341597313,1731016244395,-500.0,0.00027397,2]
[341597314,1731016244405,-500.0,0.00027397,2]
[341597315,1731016244416,-500.0,0.00027397,2]
[341597316,1731016244426,-862.29,0.00027397,2]
[341597317,1731016244440,-500.0,0.00027397,2]
[341597318,1731016244450,-506.66296387,0.00027397,2]
[341597319,1731016244460,-500.0,0.00027397,2]
[341597320,1731016244469,-1231.67,0.00027397,2]
[341597321,1731016244480,-708.86,0.00027397,2]
[341597322,1731016244490,-151.0,0.00027397,7]
[341597323,1731016244499,-500.0,0.00027397,2]
[341597324,1731016244510,-1043.33,0.00027397,2]
[341597325,1731016244520,-500.0,0.00027397,2]
[341597326,1731016244529,-512.1,0.00027397,2]
[341597327,1731016244539,-1856.88,0.00027397,2]
[341597328,1731016244549,-500.0,0.00027397,2]
[341597329,1731016244559,-500.0,0.00027397,2]
[341597330,1731016244571,-1266.11,0.00027397,2]
[341597331,1731016244581,-777.56,0.00027397,2]
[341597332,1731016244590,-500.0,0.00027397,2]
[341597333,1731016244599,-174.55352368,0.00027397,2]
[341597334,1731016244608,-500.0,0.00027397,2]
[341597335,1731016244617,-500.0,0.00027397,2]
[341597336,1731016244628,-500.0,0.00027397,2]
[341597337,1731016244638,-151.0,0.00027397,7]
[341597338,1731016244648,-538.93,0.00027397,2]
[341597339,1731016244657,-577.61,0.00027397,2]
[341597340,1731016244667,-500.0,0.00027397,2]
[341597341,1731016244676,-500.0,0.00027397,2]
[341597342,1731016244687,-500.0,0.00027397,2]
[341597343,1731016244696,-1274.42,0.00027397,2]
[341597344,1731016244705,-500.0,0.00027397,2]
[341597345,1731016244714,-500.0,0.00027397,2]
[341597346,1731016244724,-500.0,0.00027397,2]
[341597347,1731016244733,-500.0,0.00027397,2]
[341597348,1731016244742,-572.49,0.00027397,2]
[341597349,1731016244752,-4011.45,0.00027397,2]
[341597350,1731016244761,-500.0,0.00027397,2]
[341597351,1731016244771,-500.0,0.00027397,2]
[341597352,1731016244780,-4143.45,0.00027397,2]
[341597353,1731016244790,-1359.63,0.00027397,2]
[341597354,1731016244799,-551.21,0.00027397,2]
[341597355,1731016244808,-688.82,0.00027397,2]
[341597356,1731016244818,-868.33,0.00027397,2]
[341597357,1731016244828,-341.27058128,0.00027397,2]
[341597358,1731016244838,-892.36,0.00027397,2]
[341597359,1731016244847,-8056.02,0.00027397,2]
[341597360,1731016244856,-151.0,0.00027397,7]
[341597361,1731016244866,-500.0,0.00027397,2]
[341597362,1731016244875,-500.0,0.00027397,2]
[341597363,1731016244885,-579.56,0.00027397,2]
[341597364,1731016244894,-500.0,0.00027397,2]
[341597365,1731016244904,-500.0,0.00027397,2]
[341597366,1731016244914,-151.0,0.00027397,7]
[341597367,1731016244923,-635.83,0.00027397,2]
[341597368,1731016244933,-500.0,0.00027397,2]
[341597369,1731016244942,-500.0,0.00027397,2]
[341597370,1731016244951,-1000.0,0.00027397,2]
[341597371,1731016244961,-500.0,0.00027397,2]
[341597372,1731016244970,-273.3548884,0.00027397,2]
[341597373,1731016244979,-767.42,0.00027397,2]
[341597374,1731016244988,-500.0,0.00027397,2]
[341597375,1731016244998,-753.974106,0.00027397,7]
[341597376,1731016245007,-612.92,0.00027397,2]
[341597377,1731016245016,-500.0,0.00027397,2]
[341597378,1731016245026,-500.0,0.00027397,2]
[341597379,1731016245036,-753.974106,0.00027397,7]
[341597380,1731016245046,-151.0,0.00027397,7]
[341597381,1731016245055,-151.0,0.00027397,7]
[341597382,1731016245065,-151.0,0.00027397,7]
[341597383,1731016245077,-200.0,0.00027397,7]
[341597384,1731016245086,-151.0,0.00027397,7]
[341597385,1731016245097,-151.0,0.00027397,7]
[341597386,1731016245106,-151.0,0.00027397,7]
[341597387,1731016245116,-151.0,0.00027397,7]
[341597388,1731016245126,-500.0,0.00027402,7]
[341597389,1731016245136,-151.0,0.00027403,7]
[341597390,1731016245146,-177.854058,0.00027403,7]
[341597391,1731016245156,-151.0,0.00027403,7]
[341597392,1731016245168,-298.952168,0.00027403,7]
[341597393,1731016245178,-151.0,0.00027403,7]
[341597394,1731016245188,-151.0,0.00027403,7]
[341597395,1731016245199,-321.558004,0.00027403,7]
[341597396,1731016245209,-151.0,0.00027403,7]
[341597397,1731016245219,-151.0,0.00027403,7]
[341597398,1731016245228,-225.73190436,0.00027403,2]
[341597399,1731016245237,-178.91,0.00027442,2]
[341597400,1731016245247,-167.13,0.00027461,2]
[341597401,1731016245256,-315.77777859,0.00027483,2]
[341597402,1731016245266,-1701.45948546,0.00027497,2]
[341597404,1731016245759,-855.61663821,0.00027497,2]
[341597405,1731016245769,-150.110806,0.00027498,3]
[341597406,1731016245779,-537.99,0.000275,2]
[341597407,1731016245789,-534.25259088,0.00027534,7]
[341597408,1731016245800,-299.58797889,0.00027534,7]
[341597410,1731016245856,-166.15943023,0.00027534,7]
[341597411,1731016245867,-266.17350075,0.00027534,7]
[341597412,1731016245879,-699.71368841,0.00027534,7]
[341597413,1731016245891,-34.11281084,0.00027534,7]
[341597414,1731016245901,-500.0,0.00027534,7]
[341597415,1731016245911,-151.0,0.0002757,7]
[341597416,1731016245921,-151.0,0.0002757,7]
[341597417,1731016245931,-151.0,0.0002757,7]
[341597418,1731016245941,-171.57046903,0.00027571,2]
[341597419,1731016245951,-62.10290044,0.00027571,2]
[341597420,1731016245964,-124.1993566,0.00027571,2]
[341597421,1731016245974,-169.76846182,0.00027571,2]
[341597422,1731016245984,-151.0,0.00027571,7]
[341597423,1731016245994,-2028.10663788,0.00027571,2]
[341597424,1731016246011,-495.03556553,0.00027571,2]
[341597425,1731016246022,-225.58735263,0.00027571,2]
[341597426,1731016246447,-380.59868436,0.00027397,2]
[341597427,1731016246473,-429.04175051,0.00027397,2]
[341597428,1731016246485,-472.02580349,0.00027397,2]
[341597429,1731016246497,-1304.19376164,0.00027397,2]
[341597430,1731016246507,-250.30458179,0.00027571,2]
[341597431,1731016246519,-213.65092092,0.00027571,2]
[341597432,1731016246529,-753.974106,0.00027571,7]
[341597433,1731016246539,-753.974106,0.00027571,7]
[341597434,1731016246548,-500.0,0.000276,10]
[341597435,1731016246558,-151.0,0.00027652,7]
[341597436,1731016246567,-151.0,0.00027652,7]
[341597437,1731016246578,-555.241879,0.00027652,7]
[341597438,1731016246587,-555.241879,0.00027652,7]
[341597439,1731016246597,-151.0,0.00027652,7]
[341597440,1731016246607,-151.0,0.00027652,7]
[341597441,1731016246616,-2114.92312805,0.00027652,2]
[341597442,1731016246629,-2357.470003,0.00027652,2]
[341597443,1731016246684,-2982.32724564,0.00027652,2]
[341597444,1731016247232,-3485.96728548,0.00027197,2]
[341597445,1731016247295,-126006.23901452,0.00027197,2]
[341597446,1731016247304,-500.0,0.00027397,2]
[341597447,1731016247313,-500.0,0.00027397,2]
[341597448,1731016247324,-151.000001,0.00027397,7]
[341597449,1731016247334,-14830.59201241,0.00027652,2]
[341597450,1731016247343,-378.003017,0.00027652,7]
[341597451,1731016247353,-378.003017,0.00027652,7]
[341597452,1731016247362,-1658.574621,0.00027652,7]
[341597453,1731016247371,-1658.574621,0.00027652,7]
[341597454,1731016247380,-151.0,0.00027652,7]
[341597455,1731016247389,-151.0,0.00027652,7]
[341597456,1731016247398,-151.0,0.00027652,7]
[341597457,1731016247407,-208.017726,0.00027652,7]
[341597458,1731016247416,-315.77777859,0.00027669,2]
[341597459,1731016247425,-492.93292266,0.00027669,2]
[341597460,1731016247437,-151.0,0.0002767,7]
[341597461,1731016247447,-190.603974,0.0002767,7]
[341597462,1731016247456,-151.0,0.0002767,7]
[341597463,1731016247464,-151.0,0.0002767,7]
[341597464,1731016247474,-500.0,0.0002767,2]
[341597465,1731016247483,-336.8,0.0002767,2]
[341597466,1731016247492,-151.0,0.00027671,7]
[341597467,1731016247502,-151.0,0.00027671,7]
[341597468,1731016247512,-151.0,0.00027671,7]
[341597469,1731016247522,-151.0,0.00027671,7]
[341597470,1731016247531,-151.0,0.00027671,7]
[341597471,1731016247541,-151.0,0.00027671,7]
[341597472,1731016247551,-151.0,0.00027671,7]
[341597473,1731016247560,-151.0,0.00027671,7]
[341597474,1731016247569,-151.0,0.00027671,7]
[341597475,1731016247588,-151.0,0.00027671,7]
[341597476,1731016247602,-151.0,0.00027671,7]
[341597477,1731016247611,-151.0,0.00027671,7]
[341597478,1731016247620,-151.0,0.00027671,7]
[341597479,1731016247629,-151.0,0.00027671,7]
[341597480,1731016247638,-151.0,0.00027671,7]
[341597481,1731016247647,-151.0,0.00027671,7]
[341597482,1731016247656,-151.0,0.00027671,7]
[341597483,1731016247666,-151.0,0.00027671,7]
[341597484,1731016247675,-151.0,0.00027671,7]
[341597485,1731016247684,-151.0,0.00027671,7]
[341597486,1731016247693,-151.0,0.00027671,7]
[341597487,1731016247703,-151.0,0.00027671,7]
[341597488,1731016247712,-151.0,0.00027671,7]
[341597489,1731016247722,-566.41904848,0.00027671,2]
[341597490,1731016247731,-151.0,0.00027671,7]
[341597491,1731016247741,-151.0,0.00027671,7]
[341597492,1731016247750,-500.0,0.00027671,2]
[341597493,1731016247760,-500.0,0.00027671,2]
[341597494,1731016247769,-151.0,0.00027671,7]
[341597495,1731016247779,-151.0,0.00027671,7]
[341597496,1731016247788,-151.0,0.00027671,7]
[341597497,1731016247798,-500.0,0.00027671,2]
[341597498,1731016247807,-500.0,0.00027671,2]
[341597499,1731016247817,-200.0,0.00027671,2]
[341597500,1731016247828,-585.21,0.00027671,2]
[341597501,1731016247837,-170.9974,0.00027671,7]
[341597502,1731016247847,-170.9974,0.00027671,7]
[341597503,1731016247857,-500.0,0.00027671,2]
[341597504,1731016247866,-170.9974,0.00027671,7]
[341597505,1731016247876,-170.9974,0.00027671,7]
[341597506,1731016247886,-170.9974,0.00027671,7]
[341597507,1731016247895,-379.75283405,0.00027671,2]
[341597508,1731016247904,-500.0,0.00027671,2]
[341597509,1731016247913,-170.9974,0.00027671,7]
[341597510,1731016247923,-500.0,0.00027671,2]
[341597511,1731016247932,-500.0,0.00027671,2]
[341597512,1731016247943,-500.0,0.00027671,2]
[341597513,1731016247952,-500.0,0.00027671,2]
[341597514,1731016247962,-658.96,0.00027671,2]
[341597515,1731016247972,-151.0,0.00027671,7]
[341597516,1731016247982,-151.0,0.00027671,7]
[341597517,1731016247992,-500.0,0.00027671,2]
[341597518,1731016248001,-151.0,0.00027671,7]
[341597519,1731016248010,-151.0,0.00027671,7]
[341597520,1731016248020,-500.0,0.00027671,2]
[341597521,1731016248029,-151.0,0.00027671,7]
[341597522,1731016248038,-500.0,0.00027671,2]
[341597523,1731016248048,-151.0,0.00027671,7]
[341597524,1731016248058,-500.0,0.00027671,2]
[341597525,1731016248067,-151.0,0.00027671,7]
[341597526,1731016248078,-151.0,0.00027671,7]
[341597527,1731016248087,-151.0,0.00027671,7]
[341597528,1731016248096,-500.0,0.00027671,2]
[341597529,1731016248105,-210.11042679,0.00027671,2]
[341597530,1731016248115,-500.0,0.00027671,2]
[341597531,1731016248125,-534.1,0.00027671,2]
[341597532,1731016248134,-500.0,0.00027671,2]
[341597533,1731016248143,-500.0,0.00027671,2]
[341597534,1731016248152,-500.0,0.00027671,2]
[341597535,1731016248162,-500.0,0.00027671,2]
[341597536,1731016248171,-500.0,0.00027671,2]
[341597537,1731016248182,-500.0,0.00027671,2]
[341597538,1731016248191,-885.89,0.00027671,2]
[341597539,1731016248201,-500.0,0.00027671,2]
[341597540,1731016248211,-500.0,0.00027671,2]
[341597541,1731016248220,-502.74,0.00027671,2]
[341597542,1731016248230,-500.0,0.00027671,2]
[341597543,1731016248239,-500.0,0.00027671,2]
[341597544,1731016248249,-500.0,0.00027671,2]
[341597545,1731016248259,-500.0,0.00027671,2]
[341597546,1731016248268,-500.0,0.00027671,2]
[341597547,1731016248278,-771.29,0.00027671,2]
[341597548,1731016248287,-500.0,0.00027671,2]
[341597549,1731016248296,-500.0,0.00027671,2]
[341597550,1731016248306,-500.0,0.00027671,2]
[341597551,1731016248315,-500.0,0.00027671,2]
[341597552,1731016248326,-151.0,0.00027671,7]
[341597553,1731016248336,-231.495276,0.00027671,7]
[341597554,1731016248345,-500.0,0.00027671,2]
[341597555,1731016248355,-151.0,0.00027671,7]
[341597556,1731016248365,-151.0,0.00027671,7]
[341597557,1731016248374,-151.0,0.00027671,7]
[341597558,1731016248384,-500.0,0.00027671,2]
[341597559,1731016248394,-500.0,0.00027671,2]
[341597560,1731016248403,-500.0,0.00027671,2]
[341597561,1731016248412,-500.0,0.00027671,2]
[341597562,1731016248422,-636.39,0.00027671,2]
[341597563,1731016248432,-573.28,0.00027671,2]
[341597564,1731016248445,-849.16,0.00027671,2]
[341597565,1731016248454,-500.0,0.00027671,2]
[341597566,1731016248464,-500.0,0.00027671,2]
[341597567,1731016248474,-677.58,0.00027671,2]
[341597568,1731016248485,-500.0,0.00027671,2]
[341597569,1731016248494,-500.0,0.00027671,2]
[341597570,1731016248503,-500.0,0.00027671,2]
[341597571,1731016248514,-500.0,0.00027671,2]
[341597572,1731016248523,-500.0,0.00027671,2]
[341597573,1731016248532,-500.0,0.00027671,2]
[341597574,1731016248542,-500.0,0.00027671,2]
[341597575,1731016248551,-500.0,0.00027671,2]
[341597576,1731016248560,-500.0,0.00027671,2]
[341597577,1731016248570,-500.0,0.00027671,2]
[341597578,1731016248580,-506.84251862,0.00027671,2]
[341597579,1731016248590,-500.0,0.00027671,2]
[341597580,1731016248600,-500.0,0.00027671,2]
[341597581,1731016248610,-151.0,0.00027671,7]
[341597582,1731016248619,-151.0,0.00027671,7]
[341597583,1731016248629,-151.0,0.00027671,7]
[341597584,1731016248639,-500.0,0.00027671,2]
[341597585,1731016248648,-500.0,0.00027671,2]
[341597586,1731016248658,-500.0,0.00027671,2]
[341597587,1731016248667,-500.0,0.00027671,2]
[341597588,1731016248677,-500.0,0.00027671,2]
[341597589,1731016248686,-151.0,0.00027671,7]
[341597590,1731016248697,-151.0,0.00027671,7]
[341597591,1731016248706,-500.0,0.00027671,2]
[341597592,1731016248716,-172.53827602,0.00027671,2]
[341597593,1731016248725,-500.0,0.00027671,2]
[341597594,1731016248735,-500.0,0.00027671,2]
[341597595,1731016248745,-500.0,0.00027671,2]
[341597596,1731016248755,-508.05,0.00027671,2]
[341597597,1731016248764,-537.74,0.00027671,2]
[341597598,1731016248774,-500.0,0.00027671,2]
[341597599,1731016248783,-151.0,0.00027671,7]
[341597600,1731016248792,-151.0,0.00027671,7]
[341597601,1731016248802,-151.0,0.00027671,7]
[341597602,1731016248812,-500.0,0.00027671,2]
[341597603,1731016248822,-500.0,0.00027671,2]
[341597604,1731016248831,-646.85386932,0.00027671,2]
[341597605,1731016248841,-500.0,0.00027671,2]
[341597606,1731016248851,-500.0,0.00027671,2]
[341597607,1731016248860,-509.23186056,0.00027671,2]
[341597608,1731016248870,-209.17164232,0.00027671,2]
[341597609,1731016248879,-500.0,0.00027671,2]
[341597610,1731016248888,-638.14,0.00027671,2]
[341597611,1731016248898,-500.0,0.00027671,2]
[341597612,1731016248908,-500.0,0.00027671,2]
[341597613,1731016248917,-500.0,0.00027671,2]
[341597614,1731016248927,-500.0,0.00027671,2]
[341597615,1731016248936,-500.0,0.00027671,2]
[341597616,1731016248946,-500.0,0.00027671,2]
[341597617,1731016248955,-500.0,0.00027671,2]
[341597618,1731016248965,-151.0,0.00027671,7]
[341597619,1731016248975,-151.0,0.00027671,7]
[341597620,1731016248984,-151.0,0.00027671,7]
[341597621,1731016248993,-500.0,0.00027671,2]
[341597622,1731016249003,-151.0,0.00027671,7]
[341597623,1731016249013,-164.207194,0.00027671,7]
[341597624,1731016249022,-500.0,0.00027671,2]
[341597625,1731016249032,-500.0,0.00027671,2]
[341597626,1731016249041,-500.0,0.00027671,2]
[341597627,1731016249051,-441.42107385,0.00027671,2]
[341597628,1731016249061,-151.0,0.00027671,7]
[341597629,1731016249071,-151.0,0.00027671,7]
[341597630,1731016249080,-500.0,0.00027671,2]
[341597631,1731016249090,-500.0,0.00027671,2]
[341597632,1731016249099,-710.85,0.00027671,2]
[341597633,1731016249108,-151.0,0.00027671,7]
[341597634,1731016249118,-500.0,0.00027671,2]
[341597635,1731016249127,-500.0,0.00027671,2]
[341597636,1731016249137,-645.35,0.00027671,2]
[341597637,1731016249146,-500.0,0.00027671,2]
[341597638,1731016249156,-151.0,0.00027671,7]
[341597639,1731016249165,-500.0,0.00027671,2]
[341597640,1731016249175,-500.0,0.00027671,2]
[341597641,1731016249185,-648.23,0.00027671,2]
[341597642,1731016249195,-602.54451601,0.00027671,2]
[341597643,1731016249204,-336.98831669,0.00027671,2]
[341597644,1731016249213,-151.0,0.00027671,7]
[341597645,1731016249222,-151.0,0.00027671,7]
[341597646,1731016249232,-151.0,0.00027671,7]
[341597647,1731016249241,-500.0,0.00027671,2]
[341597648,1731016249251,-500.0,0.00027671,2]
[341597649,1731016249260,-500.0,0.00027671,2]
[341597650,1731016249269,-500.0,0.00027671,2]
[341597651,1731016249279,-500.0,0.00027671,2]
[341597652,1731016249288,-500.0,0.00027671,2]
[341597653,1731016249297,-500.0,0.00027671,2]
[341597654,1731016249307,-500.0,0.00027671,2]
[341597655,1731016249316,-522.56403556,0.00027671,2]
[341597656,1731016249327,-786.58,0.00027671,2]
[341597657,1731016249336,-500.0,0.00027671,2]
[341597658,1731016249346,-501.69,0.00027671,2]
[341597659,1731016249356,-500.0,0.00027671,2]
[341597660,1731016249365,-500.0,0.00027671,2]
[341597661,1731016249693,-500.0,0.00027671,2]
[341597662,1731016249704,-500.0,0.00027671,2]
[341597663,1731016249713,-596.83,0.00027671,2]
[341597664,1731016249723,-644.65,0.00027671,2]
[341597665,1731016249732,-500.0,0.00027671,2]
[341597666,1731016249742,-500.0,0.00027671,2]
[341597667,1731016249751,-500.0,0.00027671,2]
[341597668,1731016249761,-500.0,0.00027671,2]
[341597669,1731016249771,-500.0,0.00027671,2]
[341597670,1731016249781,-500.0,0.00027671,2]
[341597671,1731016249790,-500.0,0.00027671,2]
[341597672,1731016249800,-523.82,0.00027671,2]
[341597673,1731016249810,-500.0,0.00027671,2]
[341597674,1731016249819,-500.0,0.00027671,2]
[341597675,1731016249829,-151.0,0.00027671,7]
[341597676,1731016249839,-500.0,0.00027671,2]
[341597677,1731016249848,-500.0,0.00027671,2]
[341597678,1731016249858,-151.0,0.00027671,7]
[341597679,1731016249867,-500.0,0.00027671,2]
[341597680,1731016249876,-300.06681751,0.00027671,2]
[341597681,1731016249886,-500.0,0.00027671,2]
[341597682,1731016249896,-500.0,0.00027671,2]
[341597683,1731016249906,-500.0,0.00027671,2]
[341597684,1731016249915,-500.0,0.00027671,2]
[341597685,1731016249924,-500.0,0.00027671,2]
[341597686,1731016249934,-500.0,0.00027671,2]
[341597687,1731016249943,-500.0,0.00027671,2]
[341597688,1731016249953,-602.58,0.00027671,2]
[341597689,1731016249963,-500.0,0.00027671,2]
[341597690,1731016249972,-614.22,0.00027671,2]
[341597691,1731016249982,-500.0,0.00027671,2]
[341597692,1731016249991,-2753.61,0.00027671,2]
[341597693,1731016250001,-500.0,0.00027671,2]
[341597694,1731016250011,-500.0,0.00027671,2]
[341597695,1731016250021,-500.0,0.00027671,2]
[341597696,1731016250031,-973.0,0.00027671,2]
[341597697,1731016250042,-500.0,0.00027671,2]
[341597698,1731016250051,-563.73642574,0.00027671,2]
[341597699,1731016250061,-681.39,0.00027671,2]
[341597700,1731016250070,-500.0,0.00027671,2]
[341597701,1731016250080,-894.44,0.00027671,2]
[341597702,1731016250090,-500.0,0.00027671,2]
[341597703,1731016250100,-500.0,0.00027671,2]
[341597704,1731016250109,-500.0,0.00027671,2]
[341597705,1731016250120,-500.0,0.00027671,2]
[341597706,1731016250129,-500.0,0.00027671,2]
[341597707,1731016250139,-500.0,0.00027671,2]
[341597708,1731016250148,-592.73,0.00027671,2]
[341597709,1731016250158,-500.0,0.00027671,2]
[341597710,1731016250168,-950.53,0.00027671,2]
[341597711,1731016250178,-151.0,0.00027671,7]
[341597712,1731016250190,-500.0,0.00027671,2]
[341597713,1731016250200,-151.0,0.00027671,7]
[341597714,1731016250209,-151.0,0.00027671,7]
[341597715,1731016250218,-524.0,0.00027671,2]
[341597716,1731016250227,-500.0,0.00027671,2]
[341597717,1731016250236,-500.0,0.00027671,2]
[341597718,1731016250245,-607.52,0.00027671,2]
[341597719,1731016250255,-151.0,0.00027671,7]
[341597720,1731016250264,-151.0,0.00027671,7]
[341597721,1731016250273,-151.0,0.00027671,7]
[341597722,1731016250282,-509.96248398,0.00027671,2]
[341597723,1731016250294,-151.0,0.00027671,7]
[341597724,1731016250303,-151.0,0.00027671,7]
[341597725,1731016250313,-151.0,0.00027671,7]
[341597726,1731016250323,-500.0,0.00027671,2]
[341597727,1731016250332,-500.0,0.00027671,2]
[341597728,1731016250342,-443.86669979,0.00027671,2]
[341597729,1731016250352,-1031.05,0.00027671,2]
[341597730,1731016250362,-500.0,0.00027671,2]
[341597731,1731016250371,-500.0,0.00027671,2]
[341597732,1731016250381,-500.0,0.00027671,2]
[341597733,1731016250390,-500.0,0.00027671,2]
[341597734,1731016250400,-268.414246,0.00027671,7]
[341597735,1731016250410,-645.85,0.00027671,2]
[341597736,1731016250419,-701.93,0.00027671,2]
[341597737,1731016250431,-500.0,0.00027671,2]
[341597738,1731016250442,-500.0,0.00027671,2]
[341597739,1731016250451,-500.0,0.00027671,2]
[341597740,1731016250461,-652.57,0.00027671,2]
[341597741,1731016250470,-458.63068455,0.00027671,2]
[341597742,1731016250482,-500.0,0.00027671,2]
[341597743,1731016250491,-500.0,0.00027671,2]
[341597744,1731016250500,-500.0,0.00027671,2]
[341597745,1731016250512,-500.0,0.00027671,2]
[341597746,1731016250521,-500.0,0.00027671,2]
[341597747,1731016250531,-321.558004,0.00027671,7]
[341597748,1731016250541,-321.558004,0.00027671,7]
[341597749,1731016250550,-321.558004,0.00027671,7]
[341597750,1731016250560,-500.0,0.00027671,2]
[341597751,1731016250569,-542.57,0.00027671,2]
[341597752,1731016250579,-500.0,0.00027671,2]
[341597753,1731016250588,-500.0,0.00027671,2]
[341597754,1731016250597,-500.0,0.00027671,2]
[341597755,1731016250606,-500.0,0.00027671,2]
[341597756,1731016250615,-153.25,0.00027671,2]
[341597757,1731016250624,-500.0,0.00027671,2]
[341597758,1731016250634,-151.0,0.00027671,7]
[341597759,1731016250643,-500.0,0.00027671,2]
[341597760,1731016250652,-380.75939581,0.00027671,2]
[341597761,1731016250661,-500.0,0.00027671,2]
[341597762,1731016250671,-500.0,0.00027671,2]
[341597763,1731016250680,-500.0,0.00027671,2]
[341597764,1731016250690,-500.0,0.00027671,2]
[341597765,1731016250700,-500.0,0.00027671,2]
[341597766,1731016250711,-500.0,0.00027671,2]
[341597767,1731016250722,-500.0,0.00027671,2]
[341597768,1731016250731,-769.33,0.00027671,2]
[341597769,1731016250741,-500.0,0.00027671,2]
[341597770,1731016250750,-710.14,0.00027671,2]
[341597771,1731016250760,-500.0,0.00027671,2]
[341597772,1731016250769,-500.0,0.00027671,2]
[341597773,1731016250778,-500.0,0.00027671,2]
[341597774,1731016250787,-500.0,0.00027671,2]
[341597775,1731016250797,-151.0,0.00027671,7]
[341597776,1731016250806,-259.070746,0.00027671,7]
[341597777,1731016250815,-688.99,0.00027671,2]
[341597778,1731016250826,-500.0,0.00027671,2]
[341597779,1731016250835,-151.0,0.00027671,7]
[341597780,1731016250844,-151.0,0.00027671,7]
[341597781,1731016250854,-151.0,0.00027671,7]
[341597782,1731016250863,-500.0,0.00027671,2]
[341597783,1731016250872,-500.0,0.00027671,2]
[341597784,1731016250882,-500.0,0.00027671,2]
[341597785,1731016250892,-500.0,0.00027671,2]
[341597786,1731016250901,-591.2,0.00027671,2]
[341597787,1731016250911,-500.0,0.00027671,2]
[341597788,1731016250921,-500.0,0.00027671,2]
[341597789,1731016250930,-588.52,0.00027671,2]
[341597790,1731016250939,-500.0,0.00027671,2]
[341597791,1731016250949,-500.0,0.00027671,2]
[341597792,1731016250958,-500.0,0.00027671,2]
[341597793,1731016250968,-837.39,0.00027671,2]
[341597794,1731016250978,-500.0,0.00027671,2]
[341597795,1731016250988,-500.0,0.00027671,2]
[341597796,1731016250998,-500.0,0.00027671,2]
[341597797,1731016251007,-1128.69,0.00027671,2]
[341597798,1731016251016,-732.52,0.00027671,2]
[341597799,1731016251026,-500.0,0.00027671,2]
[341597800,1731016251035,-500.0,0.00027671,2]
[341597801,1731016251045,-939.73,0.00027671,2]
[341597802,1731016251054,-500.0,0.00027671,2]
[341597803,1731016251063,-500.0,0.00027671,2]
[341597804,1731016251073,-500.0,0.00027671,2]
[341597805,1731016251083,-500.0,0.00027671,2]
[341597806,1731016251092,-591.94,0.00027671,2]
[341597807,1731016251102,-1787.32,0.00027671,2]
[341597808,1731016251111,-500.0,0.00027671,2]
[341597809,1731016251121,-734.99,0.00027671,2]
[341597810,1731016251132,-500.0,0.00027671,2]
[341597811,1731016251143,-500.0,0.00027671,2]
[341597812,1731016251154,-500.0,0.00027671,2]
[341597813,1731016251164,-500.0,0.00027671,2]
[341597814,1731016251174,-452.66,0.00027671,2]